Cogmind - Beta 15 @@@ ROGUE MODE // 2025.06.01 @ 21:48:28 Player: Sen Result: Destroyed by G-67 Veteran with Plasma Rifle Performance ------------- Evolutions (4) 2000 Regions Visited (13) 2600 Robots Destroyed (50) 250 Value Destroyed (2103) 2103 Prototype IDs (2) 40 Alien Tech Used (0) 0 Bonus (1125) 1125 TOTAL SCORE: 8118 Bonus ------- Follower Combat Kills 672 Entered DSFs 500 Friendly Fire -47 Cogmind --------- Core Integrity 0/850 Matter 245/300 Energy 100/100 System Corruption 3% Temperature Warm (100) Movement Walking (120) Location -6/DSF Parts ------- > --- POWER (2) -------- (None) > --- PROPULSION (4) --- Flexi-carbon Leg > --- UTILITY (6) ------ Authchip [Armor] > --- WEAPON (3) ------- (None) > --- INVENTORY (5) ---- (None) Peak State ------------ > --- POWER ------------ Backup Power III Improved Deuterium Engine > --- PROPULSION ------- Carbon-fiber Leg Carbon-fiber Leg Improved Carbon-fiber Leg Improved Thunder Leg > --- UTILITY ---------- Large Storage Unit Improved Signal Interpreter Advanced Terrain Scan Processor Improved Weapon Cycler Advanced Transmission Jammer Recalibrator > --- WEAPON ----------- Heavy Beamcaster Bore Cannon Bore Cannon > --- INVENTORY -------- Improved Deuterium Engine Neutrino Core Carbon-fiber Leg Flexi-carbon Leg Improved Heat Sink Improved Heat Sink Experimental Terrain Scanner Kinecellerator Hardened Medium Armor Plating Hardened Medium Armor Plating Hacking Suite Dynamic Insulation System Heavy Beamcaster Heavy Beamcaster Gauss Cannon [Rating: 72] Favorites ----------- Power Improved Deuterium Engine Engine Improved Deuterium Engine Power Core Neutrino Core Propulsion Titanium Leg Leg Titanium Leg Utility Large Storage Unit Device Improved Terrain Scanner Storage Large Storage Unit Processor Advanced Terrain Scan Processor Hackware Hacking Suite Protection Hardened Medium Armor Plating Weapon Assault Cannon Energy Gun Beamcaster Energy Cannon Heavy Particle Cannon Ballistic Gun Light Assault Rifle Ballistic Cannon Assault Cannon Slashing Weapon Katana Special Melee Weapon Datajack Build | -11 -10 -9 -9 -8 -7 -7 -7 -7 -7 -6 -6 -6 -6 ------- Run | Yrd Mat Mat Min Mat Fac Was Fac Low Low Fac Was Fac DSF Slots Evolved 8 | . . 2 . 2 2 . . . . 2 . . . Power 1 | . . . . 1 . . . . . . . . . Propulsion 2 | . . . . 1 . . . . . 1 . . . Utility 4 | . . 1 . . 2 . . . . 1 . . . Weapon 1 | . . 1 . . . . . . . . . . . Parts Attached 110 | 6 3 8 3 19 14 2 13 4 2 6 12 . 18 Power 19 | 1 1 1 1 5 2 . 1 . . 1 1 . 5 Engine 17 | 1 1 1 1 5 2 . 1 . . . 1 . 4 Core 2 | . . . . . . . . . . 1 . . 1 Reactor . | . . . . . . . . . . . . . . Propulsion 24 | 2 . 1 . 5 3 . 3 . . 3 3 . 4 Treads . | . . . . . . . . . . . . . . Leg 24 | 2 . 1 . 5 3 . 3 . . 3 3 . 4 Wheel . | . . . . . . . . . . . . . . Hover . | . . . . . . . . . . . . . . Flight . | . . . . . . . . . . . . . . Utility 36 | 1 2 2 2 6 4 1 7 2 . 1 5 . 3 Device 13 | . . . 1 2 2 1 2 1 . 1 2 . 1 Storage 5 | 1 1 . . 1 . . 1 . . . . . 1 Processor 4 | . 1 . . . . . 2 1 . . . . . Hackware 2 | . . . . . . . . . . . 1 . 1 Protection 12 | . . 2 1 3 2 . 2 . . . 2 . . Artifact . | . . . . . . . . . . . . . . Weapon 31 | 2 . 4 . 3 5 1 2 2 2 1 3 . 6 Energy Gun 6 | . . . . . . 1 . . 2 . 1 . 2 Energy Cannon 1 | . . . . . 1 . . . . . . . . Ballistic Gun 12 | 2 . 3 . 1 2 . 2 1 . 1 . . . Ballistic Cannon 8 | . . . . 2 . . . . . . 2 . 4 Launcher . | . . . . . . . . . . . . . . Special Weapon . | . . . . . . . . . . . . . . Impact Weapon . | . . . . . . . . . . . . . . Slashing Weapon 2 | . . . . . 2 . . . . . . . . Piercing Weapon . | . . . . . . . . . . . . . . Special Melee Weapon 2 | . . 1 . . . . . 1 . . . . . Unidentified Prototypes 2 | . . . . . 1 . . . . . 1 . . Parts Lost 41 | . . 1 2 1 9 . . 1 . 2 2 . 23 Power 10 | . . . 1 . 1 . . 1 . 1 . . 6 Propulsion 12 | . . . . . 3 . . . . . 1 . 8 Utility 10 | . . 1 1 . 3 . . . . 1 . . 4 Weapon 9 | . . . . 1 2 . . . . . 1 . 5 Highest Loss Streak 14 | . . 1 2 1 9 . . 1 . 2 2 . 14 To Critical Strikes 1 | . . . . . . . . . . . . . 1 Average Backups 11 | . 3 13 13 13 13 13 14 14 15 13 14 14 8 Power 1 | . 1 3 2 2 1 . . 1 2 1 1 1 1 Propulsion 2 | . . 3 4 3 2 3 2 3 3 2 2 2 . Utility 4 | . 1 3 2 3 4 5 6 7 7 5 6 7 4 Weapon 2 | . 1 2 4 3 3 4 2 1 2 2 2 2 1 Tool/Special . | . . . . . . . . . . . . . . Unused Backups 30 | . 1 1 . 8 . 7 2 1 . . 4 2 4 Power 7 | . . 1 . 5 . . . . . . . 1 . Propulsion 2 | . . . . 1 . . . 1 . . . . . Utility 11 | . . . . 2 . 4 1 . . . 1 . 3 Weapon 10 | . 1 . . . . 3 1 . . . 3 1 1 Tool/Special . | . . . . . . . . . . . . . . Average Slot Usage (%) 94 | . 90 94 89 99 93 99 99 100 98 99 97 100 71 Engine 13 | . 14 10 10 17 14 15 14 15 15 10 12 13 5 Leg 23 | . 28 21 22 26 21 23 23 23 23 25 25 26 13 Device 10 | . . . 3 6 13 19 17 15 15 13 14 6 12 Storage 7 | . 5 11 11 9 7 7 7 7 7 6 6 6 6 Processor 6 | . 13 9 . . . . 5 14 15 13 13 13 8 Protection 6 | . . 9 9 10 13 10 5 . . 5 4 6 4 Energy Gun 3 | . . . . . . 5 7 6 10 13 6 6 5 Energy Cannon 2 | . . . . . 1 7 7 7 3 . . . . Ballistic Gun 10 | . 28 30 33 11 7 . 5 7 7 5 . . . Ballistic Cannon 5 | . . . . 15 10 . . . . . 10 13 9 Peak Build Rating 72 | 6 8 14 15 35 44 49 55 55 55 64 72 69 72 Average Rating 38 | 4 6 12 12 28 38 46 51 54 54 62 68 68 49 On Entrance 38 | . 6 8 12 15 35 43 49 55 55 55 64 69 69 Naked Turns . | . . . . . . . . . . . . . . Heaviest Build 70 | 11 26 31 36 62 67 66 66 62 57 62 65 64 70 Greatest Support 76 | 20 20 20 20 51 51 45 60 60 60 75 76 76 76 Greatest Overweight (x) 20 | 2 1 2 1 1 1 1 1 1 . 1 1 . 20 Average Overweight (x) . | . . 1 1 . 1 1 . . . . . . 1 Largest Inventory Capacity 15 | 8 15 15 15 15 15 15 15 15 15 15 15 15 15 Average Capacity 14 | 7 8 15 15 15 15 15 15 15 15 15 15 15 14 Most Carried 15 | 1 10 15 15 15 15 15 15 15 15 15 15 15 15 Average Carried 11 | . 3 13 13 13 13 13 14 14 15 13 14 14 8 Final Capacity 15 | 8 15 15 15 15 15 15 15 15 15 15 15 15 5 Final Carried 15 | 1 10 15 12 15 13 15 15 15 15 12 15 15 . Class Distribution -------------------- 38% | Tank 26% | Mutant 20% | Skirmisher 6% | Gunner 5% | Scavenger-Mutant Dominant Class ---------------- Mutant | -10/Materials Tank | -9/Materials Tank | -9/Mines Tank | -8/Materials Tank | -7/Factory Scavenger-Mutant | -7/Waste Skirmisher | -7/Factory Skirmisher | -7/Lower Caves Skirmisher | -7/Lower Caves Tank | -6/Factory Tank | -6/Waste Tank | -6/Factory Gunner | -6/DSF Resources | -11 -10 -9 -9 -8 -7 -7 -7 -7 -7 -6 -6 -6 -6 ----------- Run | Yrd Mat Mat Min Mat Fac Was Fac Low Low Fac Was Fac DSF Matter Collected 2837 | 243 113 124 35 585 114 333 51 364 12 114 269 . 480 Remotely . | . . . . . . . . . . . . . . Salvage Created 1909 | . 87 168 10 664 106 . . 149 . 114 103 . 508 Parts 90 | . 5 13 . 44 4 . . 3 . 7 . . 14 Haulers Intercepted . | . . . . . . . . . . . . . . Recyclers Shooed 3 | . 2 . . 1 . . . . . . . . . Parts Field Recycled . | . . . . . . . . . . . . . . Retrieved Matter . | . . . . . . . . . . . . . . Parts Self-Destructed 7 | . . . . . . . . 7 . . . . . Prevented 2 | . . . . . . . . 1 1 . . . . Kills | -11 -10 -9 -9 -8 -7 -7 -7 -7 -7 -6 -6 -6 -6 ------- Run | Yrd Mat Mat Min Mat Fac Was Fac Low Low Fac Was Fac DSF Combat Hostiles Destroyed 46 | . 2 2 1 20 3 . . 6 . 2 1 . 9 Guns 26 | . 2 2 1 10 1 . . 4 . 2 . . 4 Cannons 20 | . . . . 10 2 . . 2 . . 1 . 5 Classes Destroyed 13 | . 1 2 1 4 2 . . 1 . . 1 . 1 Worker 1 | . . . . 1 . . . . . . . . . Builder 1 | . . . . 1 . . . . . . . . . Tunneler 1 | . . . . . 1 . . . . . . . . Recycler 1 | . . 1 . . . . . . . . . . . Swarmer 11 | . . . . 8 . . . 3 . . . . . Grunt 14 | . 2 . . 6 . . . 3 . . . . 3 Sentry 5 | . . 2 . 3 . . . . . . . . . Demolisher 1 | . . . 1 . . . . . . . . . . Specialist 6 | . . . . . . . . . . . . . 6 Hunter 6 | . . . . 3 1 . . . . 2 . . . Programmer 2 | . . . . . 2 . . . . . . . . Compactor 1 | . . . . . . . . . . . 1 . . Samaritan 1 | . . . . . . . . 1 . . . . . Best Kill Streak 5 | . 1 2 1 5 1 . . 4 . 2 1 . 3 Combat Bots Only 4 | . 1 1 1 4 1 . . 4 . 2 1 . 3 Max Kills in Single Turn 2 | . 1 1 1 2 1 . . 1 . 1 1 . 1 Gunslinging . | . . . . . . . . . . . . . . Exploded . | . . . . . . . . . . . . . . Melee . | . . . . . . . . . . . . . . Uniques/NPCs Destroyed . | . . . . . . . . . . . . . . Combat | -11 -10 -9 -9 -8 -7 -7 -7 -7 -7 -6 -6 -6 -6 -------- Run | Yrd Mat Mat Min Mat Fac Was Fac Low Low Fac Was Fac DSF Hostile Shots Fired 663 | . 16 18 4 130 136 . 21 54 . 42 2 . 240 Missed 160 | . 5 1 . 26 33 . 11 13 . 9 . . 62 Hits 503 | . 11 17 4 104 103 . 10 41 . 33 2 . 178 Melee 2 | . . . . . . . . . . . 2 . . Projectile 501 | . 11 17 4 104 103 . 10 41 . 33 . . 178 AOE 4 | . . . 4 . . . . . . . . . . Critical Strikes 23 | . . 1 . 2 7 . . 1 . 1 1 . 10 Actively Blocked 1 | . . . . . 1 . . . . . . . . Part Disruptions 8 | . . . . . . . . . . . . . 8 Damage Taken 8505 | . 136 252 186 1166 1567 . 132 629 . 540 105 . 3792 Core 1368 | . 47 44 50 143 153 . 19 60 . 15 46 . 791 Absorbed by Shields 26 | . . . . . . . . . . . . . 26 Redirected to Shielding 66 | . . . . 15 51 . . . . . . . . Regen/Repaired (Parts) 275 | . 214 . . . . . . 17 . . 44 . . Core Remaining (%) 79 | 100 81 . 76 74 . . . . 66 . . . . Volleys Fired 167 | . 17 7 2 62 12 . . 12 . 8 8 . 39 Largest 3 | . 2 3 3 3 3 . . 3 . 3 3 . 3 Hottest 210 | . 40 63 63 97 100 . . 183 . 133 177 . 210 Shots Fired 448 | . 34 21 6 177 27 2 2 37 . 24 24 . 94 Gun 290 | . 34 21 6 116 11 1 1 25 . 24 8 . 43 Cannon 158 | . . . . 61 16 1 1 12 . . 16 . 51 Launcher . | . . . . . . . . . . . . . . Special . | . . . . . . . . . . . . . . Kinetic 351 | . 34 21 6 177 23 . 1 14 . 8 16 . 51 Thermal 97 | . . . . . 4 2 1 23 . 16 8 . 43 Explosive . | . . . . . . . . . . . . . . Electromagnetic . | . . . . . . . . . . . . . . Robot Hit Streak 19 | . 7 19 3 12 10 11 1 7 . 5 3 . 5 Robot Miss Streak 9 | . 2 1 1 9 2 1 2 2 . 3 8 . 8 Penetration Max . | . . . . . . . . . . . . . . Secondary Targets . | . . . . . . . . . . . . . . Shots Hit Robots 256 | . 21 29 3 92 18 3 1 20 . 15 7 . 47 Core Hits 93 | . 5 7 1 40 6 . . 10 . 6 1 . 17 Critical Kills 2 | . . . . . . . . . . . 1 . 1 Critical Parts Destroyed 2 | . . . . . . . . . . . 1 . 1 Critical Strikes 19 | . . . . 3 . . . . . 3 6 . 7 Burn 7 | . . . . . . . . . . 3 1 . 3 Destroy 8 | . . . . . . . . . . . 5 . 3 Blast 4 | . . . . 3 . . . . . . . . 1 Melee Attacks 18 | . . 10 . 2 . 2 . 1 . 3 . . . Impact . | . . . . . . . . . . . . . . Slashing 2 | . . . . . . 2 . . . . . . . Piercing . | . . . . . . . . . . . . . . Sneak Attacks 13 | . . 9 . . . . . 1 . 3 . . . Combat Hostiles . | . . . . . . . . . . . . . . Follow-up Attacks . | . . . . . . . . . . . . . . Damage Inflicted 4606 | . 217 170 35 1466 480 85 23 445 . 211 290 . 1184 Guns 2631 | . 217 170 35 785 205 . 23 295 . 211 93 . 597 Cannons 1855 | . . . . 669 227 25 . 150 . . 197 . 587 Explosions . | . . . . . . . . . . . . . . Melee 60 | . . . . . . 60 . . . . . . . Ramming 60 | . . . . 12 48 . . . . . . . . Kinetic 3206 | . 217 170 35 1454 320 . 23 128 . 75 197 . 587 Thermal 1280 | . . . . . 112 25 . 317 . 136 93 . 597 Explosive . | . . . . . . . . . . . . . . Electromagnetic . | . . . . . . . . . . . . . . Impact . | . . . . . . . . . . . . . . Slashing 60 | . . . . . . 60 . . . . . . . Piercing . | . . . . . . . . . . . . . . Highest Corruption 14 | . . . . . 13 13 14 14 14 . . . 3 Average Corruption 10 | . . . . . 5 13 13 14 14 . . . 2 Corruption Purged . | . . . . . . . . . . . . . . Corruption Blocked . | . . . . . . . . . . . . . . Effects 118 | . . . . . 13 24 39 26 5 . . . 11 Message Errors 32 | . . . . . 4 8 9 8 1 . . . 2 Matter Fused 28 | . . . . . 4 3 12 5 2 . . . 2 Heat Flow Errors 14 | . . . . . 1 2 5 3 1 . . . 2 Energy Discharges 11 | . . . . . 2 5 1 2 . . . . 1 Parts Rejected 1 | . . . . . . . . . . . . . 1 Parts Fused 1 | . . . . . . . . 1 . . . . . Data Loss (minor) 12 | . . . . . 2 2 6 2 . . . . . Data Loss (major) 3 | . . . . . . . 2 . 1 . . . . Misfires 9 | . . . . . . 2 2 3 . . . . 2 Alerts 4 | . . . . . . 2 1 1 . . . . . Misdirections 1 | . . . . . . . 1 . . . . . . Weapon Failures 2 | . . . . . . . . 1 . . . . 1 Overload Shots . | . . . . . . . . . . . . . . Overflow Damage 44 | . . . . 15 21 . . . . . . . 8 Projectiles 44 | . . . . 15 21 . . . . . . . 8 Explosions . | . . . . . . . . . . . . . . Melee . | . . . . . . . . . . . . . . Knockbacks 21 | . . . . 9 3 . . . . . . . 9 Impact . | . . . . . . . . . . . . . . Kinetic 21 | . . . . 9 3 . . . . . . . 9 Secondary . | . . . . . . . . . . . . . . Self-Inflicted Damage . | . . . . . . . . . . . . . . Shots . | . . . . . . . . . . . . . . Rammed 1 | . . . . . 1 . . . . . . . . Targets Rammed 22 | . . . . 1 21 . . . . . . . . Kicked 21 | . . . . 1 20 . . . . . . . . Crushed . | . . . . . . . . . . . . . . Highest Temperature 494 | . 12 97 11 422 265 195 284 369 211 494 374 . 301 Average Temperature 138 | . 7 35 7 158 84 72 104 139 113 226 206 . 117 Received Heat Transfer 1131 | . 75 90 . 207 . . 24 333 . . . . 402 Effects 16 | . . . . 11 . . . 2 . 2 1 . . Shutdowns 6 | . . . . 3 . . . 1 . 2 . . . Energy Bleed 5 | . . . . 4 . . . . . . 1 . . Interference 4 | . . . . 3 . . . 1 . . . . . Damage (minor) 1 | . . . . 1 . . . . . . . . . Siege Activations . | . . . . . . . . . . . . . . Martial Activations . | . . . . . . . . . . . . . . Shielding Activations . | . . . . . . . . . . . . . . Robots Disrupted . | . . . . . . . . . . . . . . Combat Hostiles . | . . . . . . . . . . . . . . Robots Corrupted . | . . . . . . . . . . . . . . Combat Hostiles . | . . . . . . . . . . . . . . Parts Fried . | . . . . . . . . . . . . . . Impact Corruptions . | . . . . . . . . . . . . . . Robots Melted . | . . . . . . . . . . . . . . Combat Hostiles . | . . . . . . . . . . . . . . Parts Melted 4 | . . . . . . . . 3 . 1 . . . Heat Transferred 2627 | . . . . . 148 37 . 518 . 518 222 . 1184 Parts Sabotaged . | . . . . . . . . . . . . . . Parts Stolen . | . . . . . . . . . . . . . . Parts Stripped . | . . . . . . . . . . . . . . Power Chain Reactions . | . . . . . . . . . . . . . . Alert | -11 -10 -9 -9 -8 -7 -7 -7 -7 -7 -6 -6 -6 -6 ------- Run | Yrd Mat Mat Min Mat Fac Was Fac Low Low Fac Was Fac DSF Maximum Alert Level 1 | . . . . 1 . . . . . . . . . Low Security (%) 93 | 100 100 100 100 61 100 100 100 . . 100 100 100 100 Level 1 6 | . . . . 38 . . . . . . . . . Level 2 . | . . . . . . . . . . . . . . Level 3 . | . . . . . . . . . . . . . . Level 4 . | . . . . . . . . . . . . . . Level 5 . | . . . . . . . . . . . . . . High Security . | . . . . . . . . . . . . . . Max Security . | . . . . . . . . . . . . . . Sterilizations 1 | . . . . . . . . . . . . . 1 Peak Influence 309 | . 47 30 20 309 84 7 110 . . 30 19 . 136 Initial 84 | . . . . . 84 . . . . . . . . Average 37 | . 4 5 2 143 10 . 34 . . 2 . . 65 Influence Increases 2074 | . 66 79 20 638 97 7 372 324 . 62 65 . 344 Destroy 0b10 Robot/C 1160 | . 40 40 20 400 60 . 140 240 . 40 . . 180 Destroy 0b10 Robot/NC 25 | . . 5 . 10 5 . 5 . . . . . . Destroy Leader 262 | . 10 20 . 100 30 . 42 10 . 10 . . 40 Allied During Kill 164 | . . . . . . . 120 44 . . . . . Successful Hack 65 | . . 14 . 22 . . 17 . . 12 . . . Disable Machine 75 | . . . . 30 . . 30 . . . . . 15 Destroy Structure 113 | . 1 . . 16 2 7 18 . . . 65 . 4 Partial Spotted 15 | . . . . 15 . . . . . . . . . Lose Combat Pursuer 195 | . 15 . . 45 . . . 30 . . . . 105 Influence Decreases 1960 | . 66 76 23 451 284 7 356 340 . 62 65 . 230 Entered New Map 113 | . . . 3 . 103 . . 7 . . . . . Time Decay 1370 | . 66 76 20 441 181 7 281 223 . 42 33 . . Lost Part 270 | . . . . 10 . . . 10 . 20 . . 230 Lost Ally 207 | . . . . . . . 75 100 . . 32 . . Squads Dispatched 16 | . 1 1 . 3 3 . 2 . . 2 . . 4 Investigation 2 | . 1 . . . . . 1 . . . . . . Extermination 3 | . . . . . 2 . 1 . . . . . . Reinforcement 10 | . . 1 . 2 1 . . . . 2 . . 4 Assault . | . . . . . . . . . . . . . . Garrison 1 | . . . . 1 . . . . . . . . . Intercept . | . . . . . . . . . . . . . . Searches Triggered . | . . . . . . . . . . . . . . Construction Impeded . | . . . . . . . . . . . . . . Haulers Reinforced . | . . . . . . . . . . . . . . Active Scanning Responses . | . . . . . . . . . . . . . . Cargo Convoy Interrupts 1 | . . . . . . . 1 . . . . . . Stealth | -11 -10 -9 -9 -8 -7 -7 -7 -7 -7 -6 -6 -6 -6 --------- Run | Yrd Mat Mat Min Mat Fac Was Fac Low Low Fac Was Fac DSF Distress Signals 6 | . 2 1 . 3 . . . . . . . . . Communications Jammed 31 | . . . . . . . 31 . . . . . . Distress Signals 31 | . . . . . . . 31 . . . . . . Times Spotted 116 | . 7 5 1 34 9 2 16 15 . 4 6 . 17 Peak Tracking Total 12 | . 6 2 1 5 3 1 12 5 . 2 2 . 5 Tactical Retreats 10 | . 1 . . 2 . . . 1 . . . . 6 Traps | -11 -10 -9 -9 -8 -7 -7 -7 -7 -7 -6 -6 -6 -6 ------- Run | Yrd Mat Mat Min Mat Fac Was Fac Low Low Fac Was Fac DSF Traps Triggered 6 | . . 1 . . 1 . 1 . . 1 . . 2 Indirectly . | . . . . . . . . . . . . . . Trap Hack Attempts . | . . . . . . . . . . . . . . Triggered . | . . . . . . . . . . . . . . Disarmed . | . . . . . . . . . . . . . . Reprogrammed . | . . . . . . . . . . . . . . Reused . | . . . . . . . . . . . . . . Traps Extracted . | . . . . . . . . . . . . . . Installed . | . . . . . . . . . . . . . . Triggered . | . . . . . . . . . . . . . . Machines | -11 -10 -9 -9 -8 -7 -7 -7 -7 -7 -6 -6 -6 -6 ---------- Run | Yrd Mat Mat Min Mat Fac Was Fac Low Low Fac Was Fac DSF Machines Disabled 7 | . . . . 2 . . 2 2 . . . . 1 Max in Single Turn 1 | . . . . 1 . . 1 . . . . . 1 Machines Repaired . | . . . . . . . . . . . . . . Machines Dismantled . | . . . . . . . . . . . . . . Machines Sabotaged . | . . . . . . . . . . . . . . Overloaded Fab Kills . | . . . . . . . . . . . . . . Hacking | -11 -10 -9 -9 -8 -7 -7 -7 -7 -7 -6 -6 -6 -6 --------- Run | Yrd Mat Mat Min Mat Fac Was Fac Low Low Fac Was Fac DSF Machines Accessed 18 | . 3 2 . 7 . . 3 . 1 1 . 1 . Terminals 9 | . . 1 . 5 . . 1 . . 1 . 1 . Fabricators 1 | . . . . . . . 1 . . . . . . Repair Stations 2 | . 1 . . . . . 1 . . . . . . Recycling Units 5 | . 2 1 . 2 . . . . . . . . . Scanalyzers . | . . . . . . . . . . . . . . Garrison Access . | . . . . . . . . . . . . . . Total Hacks 36 | . 7 3 . 17 . . 6 . 1 1 . 1 . Successful 23 | . 5 2 . 10 . . 3 . 1 1 . 1 . Failed 13 | . 2 1 . 7 . . 3 . . . . . . Catastrophic 1 | . . . . . . . 1 . . . . . . Database Lockouts . | . . . . . . . . . . . . . . Manual . | . . . . . . . . . . . . . . Terminals 21 | . . 2 . 15 . . 2 . . 1 . 1 . Fabricators 1 | . . . . . . . 1 . . . . . . Repair Stations 6 | . 3 . . . . . 3 . . . . . . Recycling Units 7 | . 4 1 . 2 . . . . . . . . . Scanalyzers . | . . . . . . . . . . . . . . Garrison Access . | . . . . . . . . . . . . . . Terminal Hacks 13 | . . 1 . 8 . . 1 . 1 1 . 1 . Record 6 | . . . . 5 . . . . . 1 . . . Open Door 1 | . . . . . . . . . 1 . . . . Open DSF 2 | . . . . . . . 1 . . . . 1 . Alert Level 1 | . . . . 1 . . . . . . . . . Locate Traps 2 | . . 1 . 1 . . . . . . . . . Zone Layout 1 | . . . . 1 . . . . . . . . . Fabricator Hacks 1 | . . . . . . . 1 . . . . . . Network Status 1 | . . . . . . . 1 . . . . . . Repair Station Hacks 3 | . 2 . . . . . 1 . . . . . . Scan Component 2 | . 1 . . . . . 1 . . . . . . Repair 1 | . 1 . . . . . . . . . . . . Recycling Unit Hacks 6 | . 3 1 . 2 . . . . . . . . . Report Inventory 1 | . 1 . . . . . . . . . . . . Retrieve Components 5 | . 2 1 . 2 . . . . . . . . . Scanalyzer . | . . . . . . . . . . . . . . Garrison Access Hacks . | . . . . . . . . . . . . . . Unauthorized Hacks . | . . . . . . . . . . . . . . Terminals . | . . . . . . . . . . . . . . Fabricators . | . . . . . . . . . . . . . . Repair Stations . | . . . . . . . . . . . . . . Recycling Units . | . . . . . . . . . . . . . . Scanalyzers . | . . . . . . . . . . . . . . Garrison Access . | . . . . . . . . . . . . . . Data Cores Recovered . | . . . . . . . . . . . . . . Used . | . . . . . . . . . . . . . . Hacking Detections 11 | . 2 1 . 6 . . 1 . . 1 . . . Full Trace Events 2 | . 1 . . . . . 1 . . . . . . Feedback Events . | . . . . . . . . . . . . . . Feedback Blocked . | . . . . . . . . . . . . . . Robot Schematics Acquired . | . . . . . . . . . . . . . . Robots Built . | . . . . . . . . . . . . . . Authchips . | . . . . . . . . . . . . . . Time . | . . . . . . . . . . . . . . Total Robot Build Rating . | . . . . . . . . . . . . . . Part Schematics Acquired . | . . . . . . . . . . . . . . Parts Built . | . . . . . . . . . . . . . . Authchips . | . . . . . . . . . . . . . . Time . | . . . . . . . . . . . . . . Total Part Build Rating . | . . . . . . . . . . . . . . Parts Repaired 1 | . 1 . . . . . . . . . . . . Time 26 | . 26 . . . . . . . . . . . . Parts Recycled . | . . . . . . . . . . . . . . Recycled Matter . | . . . . . . . . . . . . . . Retrieved Matter . | . . . . . . . . . . . . . . Retrieved Components 27 | . 6 9 . 12 . . . . . . . . . Parts Scanalyzed . | . . . . . . . . . . . . . . Part Schematics Acquired . | . . . . . . . . . . . . . . Parts Damaged . | . . . . . . . . . . . . . . Bothacking | -11 -10 -9 -9 -8 -7 -7 -7 -7 -7 -6 -6 -6 -6 ------------ Run | Yrd Mat Mat Min Mat Fac Was Fac Low Low Fac Was Fac DSF Used RIF Installer . | . . . . . . . . . . . . . . Robots Hacked 8 | . . 5 . 1 . . . 1 . 1 . . . Non-combat 7 | . . 4 . 1 . . . 1 . 1 . . . Combat 1 | . . 1 . . . . . . . . . . . Robot Hacks Applied 12 | . . 7 . 1 . . . 1 . 3 . . . parse_system 8 | . . 5 . 1 . . . 1 . 1 . . . no_distress 2 | . . 1 . . . . . . . 1 . . . find_recycling 1 | . . 1 . . . . . . . . . . . check_alert 1 | . . . . . . . . . . 1 . . . Relay Couplers Released . | . . . . . . . . . . . . . . Fabnet Peak Effective % . | . . . . . . . . . . . . . . Robots Rewired . | . . . . . . . . . . . . . . Allies Hacked 1 | . . . . . . . 1 . . . . . . Hacks Repelled . | . . . . . . . . . . . . . . Allies | -11 -10 -9 -9 -8 -7 -7 -7 -7 -7 -6 -6 -6 -6 -------- Run | Yrd Mat Mat Min Mat Fac Was Fac Low Low Fac Was Fac DSF Total Allies 38 | . . . . . . 20 . . . . 18 . . Largest Group 20 | . . . . . . 20 13 6 . . 18 . . Highest-Rated Group 656 | . . . . . . 518 309 170 . . 656 . . Highest-Rated Ally 50 | . . . . . . 35 35 31 . . 50 . . Total Orders . | . . . . . . . . . . . . . . Ally Attacks 286 | . . . . . . 34 82 30 . . 140 . . Total Damage 9676 | . . . . . . 624 1193 983 . . 6876 . . Kills 32 | . . . . . . 2 9 6 . . 15 . . Allies Corrupted . | . . . . . . . . . . . . . . Allies Melted . | . . . . . . . . . . . . . . Intel | -11 -10 -9 -9 -8 -7 -7 -7 -7 -7 -6 -6 -6 -6 ------- Run | Yrd Mat Mat Min Mat Fac Was Fac Low Low Fac Was Fac DSF Active Infowar (turns) 5619 | . . . 40 867 1111 575 1002 609 103 294 448 48 522 Optics 285 | . . . . . . . 10 275 . . . . . Sensors 1104 | . . . . 181 923 . . . . . . . . Terrain 2717 | . . . . 359 86 575 1002 557 103 34 1 . . Seismic 546 | . . . 40 506 . . . . . . . . . Jamming 2179 | . . . . . . . 155 609 103 294 448 48 522 ECM 1502 | . . . . . 770 575 157 . . . . . . Robot Analysis Total . | . . . . . . . . . . . . . . Derelict Logs Recovered . | . . . . . . . . . . . . . . Drone Launches . | . . . . . . . . . . . . . . Drone Recoveries . | . . . . . . . . . . . . . . Exploration | -11 -10 -9 -9 -8 -7 -7 -7 -7 -7 -6 -6 -6 -6 ------------- Run | Yrd Mat Mat Min Mat Fac Was Fac Low Low Fac Was Fac DSF Turns Passed 8515 | 63 1250 462 107 1359 1144 575 1002 609 103 294 824 48 675 Spaces Moved 3375 | 51 277 196 51 653 375 291 399 387 74 117 319 38 147 Core 21 | 14 . . . . . . . . . . . . 7 Treads . | . . . . . . . . . . . . . . Legs 3354 | 37 277 196 51 653 375 291 399 387 74 117 319 38 140 Wheels . | . . . . . . . . . . . . . . Hover . | . . . . . . . . . . . . . . Flight . | . . . . . . . . . . . . . . Fastest Speed 50 | 50 120 190 190 126 190 190 130 130 130 122 120 120 112 Average Speed 165 | 104 168 193 190 162 197 190 194 131 130 126 121 120 177 Slowest Speed 1050 | 150 190 260 190 200 200 190 200 200 130 196 190 120 1050 Overloaded Moves . | . . . . . . . . . . . . . . Propulsion Burnouts . | . . . . . . . . . . . . . . Robots Hopped . | . . . . . . . . . . . . . . Potential Cave-ins . | . . . . . . . . . . . . . . Cave-ins Triggered . | . . . . . . . . . . . . . . Exploration Rate (%) 34 | 4 37 23 21 55 8 94 11 68 10 3 97 2 56 Regions Visited 13 Branch Regions 3 Pre-discovered Areas . | . . . . . . . . . . . . . . Known Exits Taken 4 | . 1 . . . . . . 1 1 . . 1 . Unknown Exits Taken 5 | 1 . 1 1 1 . . 1 . . . . . . Scrap Searched 2 | . . . . . . . . 1 1 . . . . Spaces Dug . | . . . . . . . . . . . . . . Terrain Destroyed 37 | . . . . 14 2 . . . . . 12 . 9 Melee . | . . . . . . . . . . . . . . Projectile 37 | . . . . 14 2 . . . . . 12 . 9 AOE . | . . . . . . . . . . . . . . Terrain Rammed . | . . . . . . . . . . . . . . Walls Destroyed . | . . . . . . . . . . . . . . Machines Disabled . | . . . . . . . . . . . . . . Actions | -11 -10 -9 -9 -8 -7 -7 -7 -7 -7 -6 -6 -6 -6 --------- Run | Yrd Mat Mat Min Mat Fac Was Fac Low Low Fac Was Fac DSF Total 5970 | 57 1031 267 58 829 722 315 626 458 81 245 743 41 497 Wait 2023 | . 720 18 3 39 278 . 188 45 4 100 382 . 246 Move 3364 | 50 276 195 50 652 375 290 398 386 73 117 318 37 147 Hop . | . . . . . . . . . . . . . . Pick Up 115 | 1 11 18 . 25 10 11 10 4 . 2 12 2 9 Fast Attach 40 | 6 2 2 . 6 3 . 5 . 2 3 4 . 7 Attach 57 | . 1 5 3 9 11 1 2 2 . 5 4 . 14 Detach 6 | . 1 . . . . . . . . . 1 . 4 Swap 52 | . 1 2 . 7 8 1 10 6 . 3 6 . 8 Drop 102 | . 2 10 . 26 4 9 13 2 2 4 8 2 20 Fire 167 | . 17 7 2 62 12 . . 12 . 8 8 . 39 Melee 18 | . . 10 . 2 . 2 . 1 . 3 . . . Ram 1 | . . . . . 1 . . . . . . . . Kick 21 | . . . . 1 20 . . . . . . . . Crush . | . . . . . . . . . . . . . . Escape Stasis 3 | . . . . . . . . . . . . . 3 Rewire 1 | . . . . . . 1 . . . . . . . Trap . | . . . . . . . . . . . . . . Miscellaneous . | . . . . . . . . . . . . . . Route ------- -11/Scrapyard -10/Materials -9/Materials -9/Mines -8/Materials -7/Factory -7/Waste -7/Factory -7/Lower Caves -7/Lower Caves -6/Factory -6/Waste -6/Factory -6/DSF History --------- Turn | Location | Event 13 | -11/Scrapyard | Discovered new exit (range 14) 64 | -11/Scrapyard | Entered Materials 238 | -10/Materials | Repaired Lrg. Storage Unit? 308 | -10/Materials | Build established: Mutant 1268 | -10/Materials | Discovered new exit (range 11) 1312 | -10/Materials | Identified exit to Materials 1314 | -10/Materials | Entered another Materials area 1314 | -9/Materials | Evolved 2 slots: Utility x1, Weapon x1 1685 | -9/Materials | Discovered new exit (range 13) 1776 | -9/Materials | Entered Mines 1787 | -9/Mines | Assembled infested the area 1855 | -9/Mines | Discovered new exit (range 16) 1883 | -9/Mines | Entered Materials 1883 | -8/Materials | Evolved 2 slots: Power x1, Propulsion x1 1978 | -8/Materials | Garrison activated, responded to threat 2138 | -8/Materials | Build established: Tank 3172 | -8/Materials | Discovered new exit (range 11) 3242 | -8/Materials | Entered Factory 3242 | -7/Factory | Evolved 2 slots: Utility x2 4150 | -7/Factory | System corruption reached 10% 4198 | -7/Factory | Lost 9 parts (1p3n3u2w) 4332 | -7/Factory | Build established: Mutant 4365 | -7/Factory | Discovered new exit (range 14) 4386 | -7/Factory | Sucked down chute 4386 | -7/Factory | Entered Waste 4387 | -7/Waste | Joined by Warlord forces that had cleared the area 4496 | -7/Waste | A Compactor rumbled back to life 4497 | -7/Waste | Spotted C-40 Crusher 4500 | -7/Waste | Allies destroyed C-40 Crusher 4636 | -7/Waste | A Compactor rumbled back to life 4637 | -7/Waste | Allies destroyed C-40 Crusher 4929 | -7/Waste | Discovered new exit (range 13) 4945 | -7/Waste | Build established: Scavenger-Mutant 4961 | -7/Waste | Entered Factory 4961 | -7/Factory | Accompanied by 13 allies 5111 | -7/Factory | Lost 3 allies 5384 | -7/Factory | Build established: Skirmisher 5913 | -7/Factory | Discovered new exit (range 12) 5958 | -7/Factory | Cargo convoy interrupted 5963 | -7/Factory | Entered Lower Caves 5963 | -7/Lower Caves | Accompanied by 6 allies 6201 | -7/Lower Caves | Attracted the attention of an 0b10 base 6254 | -7/Lower Caves | Lost 5 allies 6489 | -7/Lower Caves | Discovered new exit (range 14) 6571 | -7/Lower Caves | Identified exit to Lower Caves 6572 | -7/Lower Caves | Entered another Lower Caves area 6647 | -7/Lower Caves | Discovered new exit (range 10) 6674 | -7/Lower Caves | Identified exit to Factory 6675 | -7/Lower Caves | Entered Factory 6675 | -6/Factory | Evolved 2 slots: Propulsion x1, Utility x1 6969 | -6/Factory | Sucked down chute 6969 | -6/Factory | Entered Waste 6979 | -6/Waste | Spotted C-40 Crusher 6990 | -6/Waste | Found Prototype Device 6998 | -6/Waste | Crushed by Compactor (1 part destroyed, 2 dropped) 7006 | -6/Waste | Crushed by Compactor (1 part destroyed, 1 dropped) 7036 | -6/Waste | Warlord forces began an assault 7041 | -6/Waste | Allies destroyed C-40 Crusher 7054 | -6/Waste | Identified Exp. Terrain Scanner 7156 | -6/Waste | Spotted C-40 Crusher 7157 | -6/Waste | Spotted C-40 Crusher 7168 | -6/Waste | Allies destroyed C-40 Crusher 7178 | -6/Waste | Allies destroyed C-40 Crusher 7208 | -6/Waste | Lost 7 allies 7236 | -6/Waste | Spotted C-40 Crusher 7258 | -6/Waste | Allies destroyed C-40 Crusher 7260 | -6/Waste | Spotted C-40 Crusher 7262 | -6/Waste | Spotted C-40 Crusher 7274 | -6/Waste | Allies destroyed C-40 Crusher 7333 | -6/Waste | Destroyed C-40 Crusher 7343 | -6/Waste | Lost 11 allies 7400 | -6/Waste | Discovered new exit (range 12) 7727 | -6/Waste | Build established: Tank 7791 | -6/Waste | Identified exit to Factory 7793 | -6/Waste | Entered Factory 7840 | -6/Factory | Identified exit to DSF 7841 | -6/Factory | Entered DSF 7875 | -6/DSF | Additional patrols routed to DSF 8080 | -6/DSF | Lost 4 parts (1p2n1w) 8157 | -6/DSF | Core integrity fell below 50% 8217 | -6/DSF | Lost 14 parts (4p4n2u4w) 8419 | -6/DSF | Sterilization system engaged 8426 | -6/DSF | Lost 3 parts (1p2u) 8439 | -6/DSF | Ambient heat levels rising (+10) 8454 | -6/DSF | Ambient heat levels rising (+10) 8460 | -6/DSF | Core integrity fell below 20% 8469 | -6/DSF | Ambient heat levels rising (+10) 8484 | -6/DSF | Ambient heat levels rising (+10) 8499 | -6/DSF | Ambient heat levels rising (+10) 8514 | -6/DSF | Ambient heat levels rising (+10) 8516 | -6/DSF | Destroyed by G-67 Veteran with Plasma Rifle Last Messages --------------- 08513_ A-15 Conveyor heat damages Imp. Ion Engine. 08513_ Dropped Magnetic Acceleration Cannon. 08513_ Dropped Hvy. Beamcaster. 08514_ H-61 Shepherd heat damages Unknown Treads. 08514_ A-15 Conveyor heat spikes uncontrollably. 08514_ A-15 Conveyor heat damages core (-8). 08514_ ALERT: Ambient heat levels +10. 08514_ Dropped Dynamic Insulation System. 08514_ Dropped Lrg. Storage Unit. 08515_ G-50 Soldier heat damages Adv. Heat Sink. 08515_ A-15 Conveyor heat spikes uncontrollably. 08515_ A-15 Conveyor heat damages Med. Treads, Transport Network Coupler. 08515_ Field strength at 65. 08516_ H-61 Shepherd heat damages core (-19). 08516_ Field strength at 40. [Achievement: Achiever] Map ----- +----------------------------------------------------+ | ??????????????????????????????????????? | | ??????????????????????????????????????? | | ??????????????????????????????????????? | | ?????????##???????????????????????????? | | ?????????""#??????????????##??????????? | | ?????????#"#??????????#### #??????????? | | ??????####"##???????### # ##?????????? | | ??????#"""""#########||!!!!!#?????????? | | ??????#"""""##[[# %% ||%!!!!#?????????? | | ???#"##%%% ! [*%% #?????????? | | ???#"""""% /[! !% % #?????????? | | ????###"% ## #]!! # ###?????????? | | ??????### ### #]]]### % ##?????????? | | ???????## !########## #?????????? | | ???????#] #??????# #?????????? | | ???????#] !#??????# #?????????? | | ???????## ###??????### % ##?????????? | | ???????#] #??????#** #?????????? | | ???????#] #??????#** !#?????????? | | ???????#] #??????#** % ! #?????????? | | ??????### ############ ###?????????? | | ?????##]] !##!!!#!!!#?# " ##??????????? | | ????##;]] ##!!!#!!!## % ##||???????? | | ????# %* ggg ^ A A ??????? | | ????##;**[%! ]!!!% H ??????? | | ??????#** * !!@^! ??????? | | ??????#// %#;%]!#!!!## A##!????????? | | ??????#// ## [ #!!!### ##?!????????? | | ??????###############?# #???#???????? | | ??????????????????????! !???????????? | | ??????????????????????! !???????????? | | ??????????????????????! !???????????? | | ?????????????????????## #???????????? | | ??????????????????????! ????????????? | | ??????????????????????! ????????????? | | ??????????????????????? ????????????? | | ??????????????????????????????????????? | | ??????????????????????????????????????? | | ??????????????????????????????????????? | | ??????????????????????????????????????? | | ??????????????????????????????????????? | | ??????????????????????????????????????? | | ??????????????????????????????????????? | | ??????????????????????????????????????? | | ??????????????????????????????????????? | | ??????????????????????????????????????? | | ??????????????????????????????????????? | | ??????????????????????????????????????? | | ??????????????????????????????????????? | | ??????????????????????????????????????? | +----------------------------------------------------+ Best States ------------- Heat Dissipation 56 Energy Generation 31 Energy Capacity 505 Matter Stores 300 Matter Capacity 300 Sight Range 20 Robot Scan Range 15 Terrain Scan Range 16 Terrain Scan Density 210 ECM Strength 2 Jamming Range 16 EM Shielding 2 Armor Coverage 225 Resistance: EM 15 Core Shielding 20 Utility Shielding 33 Weapon Cycling 20 Evasion (%) 70 Kinecelleration 30 Offensive Hacking 10 Authchip Count 4 Item Schematics ----------------- None Robot Schematics ------------------ None Fabricated ------------ Nothing Repaired ---------- Lrg. Storage Unit | 38% | -10/Materials Alien Tech Used ----------------- None Achievements -------------- Achiever Below Omniscient Cartographer We Are Legion Challenges ------------ None Game ------ Seed SuperchargedCommStabilizer Manual? 0 Play Time 02:58:17 Cumulative 28.9 hours Start 2025.06.01 @ 18:05:55 End 2025.06.01 @ 21:48:28 Sessions 1 Manual Loads 0 Difficulty Rogue Special Mode None Game No. 29 Rogue 29 Adventurer 0 Explorer 0 Win Type - Total 0 Types 0/0/0/0/0/0/0/0/0/0 Lore% 12 Gallery% 26 Achievement% 25 Wizard Run 0 Options --------- Layout 1 ASCII 1 Keyboard 0 Movement Numpad Keybinds 0 Fullscreen 1 Font 24/Smallcaps Map View 50x35 Zoom Use 0% Tactical HUD 1 Map Filters NONE Filters NONE Steam 1 RUN: 68f43477-a879-43b8-8f0a-d525340f8b4e